bitfinex/quotes_ETHUSD_20241106
["timestamp","ask_amount","ask_price","bid_price","bid_amount"]
[1730853486485,4.04289,2473.5,2472.9,4.84913]
[1730853486690,8.08586,2473.5,2472.9,5.0139153]
[1730853486895,4.04385,2472.9,2472.3,4.04469]
[1730853487100,4.04406,2472.8,2472.2,4.04482]
[1730853487253,0.01140361,2472.8,2472.1,0.8054]
[1730853487675,4.04442,2472.6,2472.1,0.8054]
[1730853487880,0.8012,2473.0,2472.6,4.04432]
[1730853487881,0.01143425,2472.7,2472.6,4.04432]
[1730853488096,0.8012,2473.0,2472.9,4.04383]
[1730853488251,0.8012,2473.0,2472.5,4.04447]
[1730853488458,0.84749414,2473.0,2472.9,4.04383]
[1730853488753,0.04629414,2473.0,2472.6,4.04417]
[1730853488953,0.04629414,2473.0,2472.4,4.04461]
[1730853489157,0.04629414,2473.0,2472.2,4.04486]
[1730853489158,0.8012,2472.8,2472.2,4.04486]
[1730853489363,0.04466828,2472.7,2472.2,4.04486]
[1730853489558,0.04466828,2472.7,2472.4,4.04453]
[1730853489803,0.8012,2472.8,2472.4,4.04453]
[1730853489982,0.04554027,2472.6,2472.0,4.854267]
[1730853490166,4.08995027,2472.6,2472.0,0.809057]
[1730853490369,0.5346553,2472.6,2471.6,4.04585]
[1730853490602,0.5346553,2472.6,2471.5,0.8054]
[1730853490603,4.04464,2472.5,2471.8,4.04549]
[1730853490912,0.04554027,2472.6,2472.1,8.09014]
[1730853491069,0.04541515,2472.4,2472.1,4.04502]
[1730853491437,0.0459981,2472.3,2472.2,4.04498]
[1730853491705,0.0459981,2472.3,2472.0,4.0453]
[1730853492011,4.09033124,2472.2,2471.5,4.04608]
[1730853492163,0.04525124,2472.2,2471.7,4.04578]
[1730853492358,0.8012,2472.5,2471.2,4.28159353]
[1730853492559,0.04599413,2472.4,2472.1,4.04513]
[1730853492816,5.04599413,2472.4,2471.8,8.09108]
[1730853492971,0.63071354,2472.4,2471.8,4.04558]
[1730853493171,0.63071354,2472.4,2471.8,8.0912]
[1730853493374,0.63071354,2472.4,2471.8,4.0456]
[1730853493614,4.04493,2472.3,2471.6,4.04586]
[1730853493779,5.63071354,2472.4,2471.2,4.20068841]
[1730853493780,0.63071354,2472.4,2471.9,4.04534]
[1730853493963,0.01133712,2472.3,2472.1,4.04505]
[1730853494164,0.01133712,2472.3,2471.2,4.21068841]
[1730853494411,0.01133712,2472.3,2472.2,4.04498]
[1730853494905,0.8012,2472.5,2472.1,4.04513]
[1730853495108,0.04703738,2472.3,2472.2,4.12587422]
[1730853495259,0.8125,2472.9,2472.5,4.04439]
[1730853495665,0.04765612,2472.8,2472.4,4.04463]
[1730853495860,5.04765612,2472.8,2472.2,4.04488]
[1730853496066,9.09167612,2472.8,2472.2,4.04488]
[1730853496269,0.8125,2472.7,2472.1,0.08089356]
[1730853496498,0.8125,2472.2,2471.6,4.04581]
[1730853496901,0.04398312,2472.1,2471.7,4.04567]
[1730853497103,0.04398312,2472.1,2471.8,4.04562]
[1730853497376,0.8125,2472.2,2471.8,8.09124]
[1730853497573,0.8125,2472.5,2472.0,4.04529]
[1730853498119,2.202623,2472.5,2472.0,8.09058]
[1730853498419,0.8125,2472.5,2472.0,4.0452]
[1730853498716,0.8125,2472.5,2472.0,4.04528]
[1730853499421,4.08923307,2472.4,2471.8,4.04553]
[1730853499774,4.08923307,2472.4,2471.4,4.0462]
[1730853499775,4.85742,2472.3,2471.4,4.0462]
[1730853499978,4.08999183,2472.2,2471.6,4.04587]
[1730853500282,0.8125,2472.0,2471.2,4.04645]
[1730853500474,4.04592,2471.7,2471.0,4.04684]
[1730853500679,4.04597,2471.6,2471.0,4.04684]
[1730853500874,4.04612,2471.5,2471.0,4.04684]
[1730853501073,0.8125,2471.4,2470.9,0.07048133]
[1730853501312,0.85188246,2471.4,2471.0,4.04682]
[1730853501516,0.85188246,2471.4,2470.9,0.07048133]
[1730853501720,0.85188246,2471.4,2470.9,4.11758133]
[1730853501906,0.85188246,2471.4,2470.9,0.07048133]
[1730853502107,4.04688,2471.1,2470.9,0.07048133]
[1730853502411,0.85229909,2471.0,2470.5,4.04775]
[1730853502930,0.85229909,2471.0,2470.4,0.0432352]
[1730853503102,0.85229909,2471.0,2470.4,4.0911452]
[1730853503306,0.85229909,2471.0,2470.5,4.04765]
[1730853503513,0.85229909,2471.0,2470.5,8.09531]
[1730853503820,4.89924909,2471.0,2470.4,0.0432352]
[1730853504129,4.04776,2470.5,2470.4,0.0432352]
[1730853504342,4.86026,2470.5,2470.4,0.0432352]
[1730853504701,7.87026,2470.5,2470.4,0.0432352]
[1730853505049,7.88026,2470.5,2470.4,0.0432352]
[1730853505332,9.977788,2470.5,2470.4,0.0432352]
[1730853505695,9.977788,2470.5,2469.3,4.04961]
[1730853505696,0.8125,2469.9,2469.3,4.04961]
[1730853505929,0.8125,2469.9,2469.1,0.0606178]
[1730853505930,0.8125,2469.9,2469.5,4.04937]
[1730853506138,0.8125,2469.9,2469.3,8.09928]
[1730853506292,0.8125,2469.9,2469.4,4.13053294]
[1730853506753,0.8125,2469.9,2469.3,4.04962]
[1730853507039,0.03640939,2469.8,2469.3,4.04962]
[1730853507268,5.0,2469.6,2469.1,0.0606178]
[1730853507543,5.0,2469.5,2469.1,0.0606178]
[1730853507721,0.03418112,2469.5,2469.1,0.0606178]
[1730853507979,0.03418112,2469.5,2469.1,4.1105278]
[1730853508451,0.03418112,2469.5,2469.1,0.0606178]
[1730853508740,0.03418112,2469.5,2469.1,4.1106178]
[1730853508946,0.03418112,2469.5,2469.1,0.0606178]
[1730853509249,5.7969,2469.3,2469.1,0.0606178]
[1730853509707,0.01509279,2469.2,2469.1,0.0606178]
[1730853510148,0.7969,2469.3,2469.1,0.0606178]
[1730853510444,0.04969595,2469.2,2469.1,0.0606178]
[1730853512735,0.04969595,2469.2,2469.1,4.1106678]
[1730853512942,0.04969595,2469.2,2469.1,0.0606178]
[1730853513299,1.03931355,2469.2,2469.1,0.0606178]
[1730853513536,0.04969595,2469.2,2469.1,4.1106678]
[1730853513705,0.04969595,2469.2,2469.1,0.0606178]
[1730853513909,0.7969,2469.7,2469.1,4.1105178]
[1730853514347,0.7969,2469.7,2469.2,4.04989]
[1730853514530,0.03453663,2469.6,2469.1,0.0606178]
[1730853514701,0.03453663,2469.6,2469.1,4.1105778]
[1730853514897,0.03453663,2469.6,2469.2,0.08099226]
[1730853515101,0.03453663,2469.6,2469.5,4.0494]
[1730853515397,0.7969,2470.1,2469.1,0.87669558]
[1730853515614,0.03411948,2470.0,2469.6,4.04914]
[1730853515815,0.03411948,2470.0,2469.7,0.08097135]
[1730853516000,0.03411948,2470.0,2469.9,4.04874]
[1730853516200,5.7969,2470.4,2469.9,4.04874]
[1730853516402,0.03808721,2470.3,2469.9,4.04867]
[1730853516940,0.03808721,2470.3,2470.2,4.04825]
[1730853517157,0.03808721,2470.3,2470.2,4.1292113]
[1730853517304,0.7969,2471.3,2470.6,4.04759]
[1730853517498,0.7969,2471.3,2470.8,4.04722]
[1730853517704,0.0484106,2471.2,2470.8,4.04722]
[1730853518153,0.63294166,2471.2,2470.6,4.04751]
[1730853518316,4.67956166,2471.2,2470.3,8.09592]
[1730853518651,4.67956166,2471.2,2470.4,4.0479]
[1730853518652,5.0,2471.1,2470.4,4.0479]
[1730853518836,5.0,2471.1,2470.3,4.04794]
[1730853519037,8.09447,2470.9,2470.1,4.04835]
[1730853519219,8.09447,2470.9,2469.9,4.453557]
[1730853519220,5.89303386,2470.8,2469.9,4.453487]
[1730853519428,5.89303386,2470.8,2469.7,4.04904]
[1730853519429,4.0478,2470.5,2469.7,4.04904]
[1730853519725,0.7969,2470.1,2469.4,4.04956]
[1730853520028,0.02699676,2470.0,2469.1,4.1106378]
[1730853520205,0.02699676,2470.0,2469.3,4.04963]
[1730853520401,0.02699676,2470.0,2469.5,4.04936]
[1730853520601,0.60938644,2470.0,2469.4,35.0]
[1730853521008,5.0,2469.8,2469.4,35.0]
[1730853521208,0.01674654,2469.7,2469.1,0.0606178]
[1730853521439,0.01674654,2469.7,2469.3,4.04967]
[1730853521645,0.0260448,2469.6,2469.4,4.04953]
[1730853521815,0.0260448,2469.6,2469.5,7.954353]
[1730853522022,5.0,2470.3,2469.6,4.04912]
[1730853522442,0.7969,2470.4,2470.0,4.04853]
[1730853522748,0.7969,2470.4,2470.1,4.04841]
[1730853522749,0.01470912,2470.2,2470.1,4.04841]
[1730853522946,0.7969,2470.4,2470.1,4.04841]
[1730853523110,0.01626883,2470.2,2470.1,4.04841]
[1730853523431,0.0152469,2470.2,2470.1,4.04841]
[1730853523943,5.8185,2470.7,2470.1,4.04841]
[1730853524137,0.01526733,2470.2,2470.1,4.04841]
[1730853524354,5.0,2471.0,2470.1,0.7891]
[1730853524666,5.8185,2471.0,2470.5,4.04765]
[1730853524822,5.8185,2471.0,2470.3,8.09597]
[1730853525259,5.8185,2471.0,2470.4,4.04791]
[1730853525559,5.8185,2471.0,2470.5,4.04774]
[1730853525560,0.58185,2470.9,2470.5,4.04774]
[1730853525769,0.8185,2471.0,2470.6,4.12844069]
[1730853526064,0.8185,2471.4,2470.7,0.08094158]
[1730853526215,0.8185,2471.4,2470.4,4.04792]
[1730853526562,0.8185,2471.4,2471.0,4.04685]
[1730853527492,1.40035,2471.7,2470.8,4.04721]
[1730853527699,4.04516,2472.1,2471.8,4.0456]
[1730853527700,0.8185,2472.0,2471.8,4.0456]
[1730853527840,4.05446,2472.6,2471.8,4.04551]
[1730853527841,0.8185,2472.3,2471.8,4.04551]
[1730853528239,0.8185,2472.3,2472.0,4.04529]
[1730853528451,0.8185,2472.3,2471.6,4.04584]
[1730853528662,0.58185,2472.2,2471.6,4.04584]
[1730853528942,0.58185,2472.2,2471.5,4.04608]
[1730853529254,5.8185,2472.3,2471.5,4.04608]
[1730853529255,5.8185,2472.3,2471.9,4.0454]
[1730853529447,5.8185,2472.3,2471.7,4.04566]
[1730853529640,5.8185,2472.3,2471.6,35.0]
[1730853529846,5.8185,2472.3,2471.9,4.04535]
[1730853530271,5.8185,2472.3,2471.7,4.04566]
[1730853530457,0.6267312,2472.2,2471.7,4.04566]
[1730853530660,0.61636498,2472.2,2471.9,4.04536]
[1730853530861,0.03451498,2472.2,2472.1,4.04514]
[1730853531202,0.03451498,2472.2,2471.9,4.0453]
[1730853531492,0.04469141,2472.1,2471.9,4.0453]
[1730853531640,0.04469141,2472.1,2471.9,8.09065]
[1730853531841,0.8185,2472.5,2471.9,4.0453]
[1730853532089,4.86303,2472.5,2471.7,4.04573]
[1730853532270,0.53120555,2472.4,2471.7,4.04573]
[1730853532472,0.53120555,2472.4,2471.7,4.04568]
[1730853532990,5.0,2472.3,2471.6,35.0]
[1730853533192,5.0,2472.3,2471.5,4.04606]
[1730853533193,9.04484,2472.3,2471.5,4.04606]
[1730853533343,5.0,2472.3,2471.5,4.04606]
[1730853533544,0.53120555,2472.4,2472.0,4.04529]
[1730853533545,0.55312056,2472.2,2472.0,4.04529]
[1730853533782,0.53120555,2472.4,2472.0,4.04516]
[1730853533990,0.4966074,2472.4,2471.8,4.04556]
[1730853534157,4.04623,2471.5,2471.2,0.7891]
[1730853534357,5.0,2471.4,2470.5,4.83682]
[1730853534668,4.04671,2471.2,2470.4,4.04783]
[1730853534873,1.3105792,2471.2,2470.5,4.04775]
[1730853535043,0.01240839,2471.1,2470.5,4.04775]
[1730853535250,0.01240839,2471.1,2470.7,4.0474]
[1730853535441,0.01240839,2471.1,2470.3,39.13028537]
[1730853535644,4.04722,2470.9,2470.1,0.7891]
[1730853535845,4.533872,2470.8,2470.0,4.04846]
[1730853536044,5.49994122,2470.8,2470.0,4.04846]
[1730853536281,5.49994122,2470.8,2470.1,4.04839]
[1730853536589,5.49994122,2470.8,2470.0,4.04846]
[1730853536590,9.54722122,2470.8,2470.0,4.04846]
[1730853536756,5.49994122,2470.8,2470.1,4.0484]
[1730853536974,0.75050493,2470.7,2470.1,4.0484]
[1730853537173,0.01335366,2470.6,2470.1,4.0484]
[1730853537399,4.07820559,2470.5,2469.9,4.13028537]
[1730853537569,0.03043559,2470.5,2470.0,4.04855]
[1730853538254,0.03043559,2470.5,2470.0,4.04848]
[1730853538461,0.03043559,2470.5,2469.9,4.13028537]
[1730853539005,0.01409943,2470.4,2469.8,35.0]
[1730853539209,4.04755,2470.7,2469.9,4.04873]
[1730853539501,0.01332979,2470.6,2469.9,4.04873]
[1730853540000,0.01326934,2470.5,2469.9,4.04863]
[1730853540222,4.04778,2470.5,2469.8,35.0]
[1730853540506,1.19206029,2470.4,2469.8,35.0]
[1730853540686,4.04818,2470.3,2469.8,35.0]
[1730853540896,4.0483,2470.2,2469.8,35.0]
[1730853541190,4.04845,2470.1,2469.2,4.84769]
[1730853541361,9.00619748,2470.1,2469.3,0.0809841]
[1730853541693,9.00619748,2470.1,2469.4,35.0]
[1730853542112,0.90921748,2470.1,2469.4,35.0]
[1730853542266,5.0,2470.0,2469.3,4.04959]
[1730853542601,5.0,2470.0,2469.1,8.31126121]
[1730853542602,0.01527528,2469.9,2469.1,8.31126121]
[1730853542919,0.7733,2469.8,2469.1,35.13107584]
[1730853543066,4.82319,2469.2,2469.1,0.13107584]
[1730853543262,4.82319,2469.2,2469.1,0.0606178]
[1730853543491,4.84226431,2469.2,2469.1,0.0606178]
[1730853543716,8.40226431,2469.2,2469.1,0.0606178]
[1730853543895,10.14746374,2469.2,2469.1,0.0606178]
[1730853544229,4.05104,2468.5,2467.9,0.0606178]
[1730853544363,0.01,2468.8,2467.9,0.0606178]
[1730853544364,9.05186,2468.0,2467.9,0.0606178]
[1730853544565,9.07142426,2468.0,2467.9,0.0606178]
[1730853544914,12.86476922,2468.0,2467.9,0.0606178]
[1730853545211,12.86476922,2468.0,2466.7,4.1145478]
[1730853545212,4.05383,2466.8,2466.7,0.0606178]
[1730853545366,7.82713,2466.8,2466.7,0.0606178]
[1730853545734,7.83713,2466.8,2466.7,0.0606178]
[1730853545863,8.39713,2466.8,2466.7,0.0606178]
[1730853546290,8.39713,2466.8,2465.5,35.0606178]
[1730853546291,5.0,2465.6,2465.5,0.0606178]
[1730853546474,8.982893,2465.6,2465.5,0.0606178]
[1730853546808,4.82893,2465.8,2465.5,0.0606178]
[1730853546809,0.7733,2465.8,2465.5,0.0606178]
[1730853546964,8.0,2466.2,2465.5,0.0606178]
[1730853547165,0.7733,2466.1,2465.5,0.0606178]
[1730853547618,5.0,2465.7,2465.5,0.0606178]
[1730853547905,0.02087761,2465.6,2465.5,0.0606178]
[1730853548115,0.52296537,2465.6,2465.5,0.0606178]
[1730853548265,4.59258658,2465.6,2465.5,0.0606178]
[1730853548465,7.59258658,2465.6,2465.5,0.0606178]
[1730853548665,7.5962416,2465.6,2465.5,0.0606178]
[1730853549067,8.5404416,2465.6,2465.5,0.0606178]
[1730853549268,12.5962416,2465.6,2465.5,0.0606178]
[1730853549994,8.03835384,2465.6,2465.5,0.0606178]
[1730853550243,12.09415384,2465.6,2465.5,0.0606178]
[1730853550398,8.03835384,2465.6,2465.5,0.0606178]
[1730853550599,12.09415384,2465.6,2465.5,0.0606178]
[1730853551038,8.03835384,2465.6,2465.5,0.0606178]
[1730853551252,5.03835384,2465.6,2465.5,0.0606178]
[1730853551743,5.94774922,2465.6,2465.5,0.0606178]
[1730853552047,10.00354922,2465.6,2465.5,0.0606178]
[1730853552602,13.77684922,2465.6,2465.5,0.0606178]
[1730853552974,13.77684922,2465.6,2464.2,0.0606178]
[1730853552975,5.0,2464.3,2464.2,0.0606178]
[1730853553243,9.05794,2464.3,2464.2,0.0606178]
[1730853553547,9.05794,2464.3,2462.6,4.87597]
[1730853553548,9.05794,2464.3,2462.9,4.06011]
[1730853553549,5.0,2463.6,2462.9,4.06011]
[1730853553760,4.05852,2464.0,2462.9,4.06011]
[1730853553761,5.0,2463.5,2462.9,4.06025]
[1730853554052,4.0584,2464.1,2463.2,4.05964]
[1730853554053,5.0,2463.9,2463.2,4.05964]
[1730853554350,4.0584,2464.1,2462.6,4.88592]
[1730853554351,5.0,2463.6,2462.8,4.06038]
[1730853554568,0.5,2463.5,2462.9,4.06023]
[1730853554847,5.0,2463.6,2463.2,4.05969]
[1730853555047,4.05789,2464.4,2463.5,4.05912]
[1730853555048,5.0,2464.0,2463.5,4.05912]
[1730853555254,0.8283,2464.2,2463.6,4.05909]
[1730853555564,5.0,2464.6,2463.8,4.05877]
[1730853555704,5.0,2464.6,2463.9,39.05859]
[1730853555900,5.0,2464.2,2463.9,35.0]
[1730853556350,4.05844,2464.0,2463.9,35.0]
[1730853556549,9.05905,2463.7,2462.7,4.06057]
[1730853556755,5.0,2463.3,2462.6,4.06063]
[1730853556899,5.0,2463.3,2462.7,4.06053]
[1730853557105,6.734228,2463.3,2462.5,4.1382708]
[1730853557350,5.8283,2463.3,2462.5,4.1382708]
[1730853557706,5.8283,2463.3,2462.8,4.06034]
[1730853557908,5.0,2463.3,2462.8,4.06038]
[1730853558336,5.0,2463.6,2463.0,4.05996]
[1730853558541,5.0,2463.0,2462.5,4.1381408]
[1730853558723,5.0,2463.0,2462.5,0.0773708]
[1730853559644,5.0,2463.0,2462.5,4.1382308]
[1730853559938,5.0,2463.0,2462.6,0.55]
[1730853560349,5.0,2463.0,2462.5,0.0773708]
[1730853560753,5.0,2463.4,2462.9,4.06012]
[1730853561046,5.0,2463.3,2462.8,4.13028537]
[1730853561556,5.0,2463.3,2463.0,0.55]
[1730853561843,5.0,2463.3,2462.9,0.55]
[1730853562016,5.0,2463.0,2462.5,0.0773708]
[1730853562222,1.3283,2463.5,2462.5,0.0773708]
[1730853562223,5.0,2462.6,2462.5,0.0773708]
[1730853562847,4.56039,2462.9,2462.5,0.0773708]
[1730853562848,0.8283,2462.7,2462.5,0.0773708]
[1730853563019,4.06074,2462.6,2462.5,0.0773708]
[1730853563550,5.0,2462.6,2462.5,0.0773708]
[1730853563772,5.0,2463.0,2462.7,4.06053]
[1730853563921,5.0,2463.0,2462.6,4.06074]
[1730853564131,0.8283,2463.5,2462.8,4.06041]
[1730853564447,0.8283,2463.5,2463.2,4.05965]
[1730853564648,5.0,2463.9,2463.5,0.55]
[1730853564861,5.0,2463.8,2463.5,4.13028537]
[1730853565040,0.8283,2464.0,2463.6,0.55]
[1730853565205,5.0,2463.7,2463.3,0.55]
[1730853565414,5.0,2463.7,2463.4,4.05942]
[1730853565610,5.0,2463.6,2463.3,0.55]
[1730853565829,5.0,2463.8,2463.3,0.55]
[1730853566112,5.0,2463.8,2463.1,4.13028537]
[1730853566113,5.0,2463.8,2463.5,0.55]
[1730853566356,0.905862,2463.7,2463.5,0.55]
[1730853566720,0.8283,2464.0,2463.4,4.05932]
[1730853566909,0.8283,2464.0,2463.6,4.05899]
[1730853567235,5.0,2464.1,2463.7,0.55]
[1730853567564,5.8283,2464.4,2463.7,4.05893]
[1730853567729,5.8283,2464.4,2463.8,0.55]
[1730853567916,0.8283,2464.4,2464.1,4.05817]
[1730853568255,0.8283,2464.4,2464.0,0.55]
[1730853568440,5.0,2464.2,2464.0,0.55]
[1730853568969,5.0,2464.2,2463.7,0.55]
[1730853569130,5.0,2463.9,2463.2,4.05962]
[1730853569318,0.905846,2463.8,2463.3,4.05954]
[1730853569716,5.0,2463.9,2463.5,4.13028537]
[1730853569942,4.05821,2464.2,2463.5,4.13028537]
[1730853569943,5.0,2464.2,2463.5,4.13028537]
[1730853570144,5.0,2464.1,2463.6,4.05903]
[1730853570354,5.0,2464.1,2463.8,4.05876]
[1730853570565,5.0,2464.1,2463.5,4.13028537]
[1730853570852,5.0,2464.2,2463.6,4.0591]
[1730853571016,5.0,2464.2,2463.5,4.13028537]
[1730853571419,5.0,2464.2,2463.6,4.60909]
[1730853571655,5.0,2464.2,2463.8,0.55]
[1730853572153,5.0,2464.2,2463.6,0.55]
[1730853572154,9.05816,2464.2,2463.6,0.55]
[1730853572359,0.905816,2464.1,2463.6,0.55]
[1730853572560,0.905816,2464.1,2463.7,4.05893]
[1730853572729,0.905816,2464.1,2463.6,0.55]
[1730853574514,5.0,2463.9,2463.6,0.55]
[1730853574717,5.0,2463.9,2463.1,8.19011537]
[1730853574718,9.05861,2463.9,2463.1,8.19011537]
[1730853574945,0.905861,2463.8,2463.3,4.05957]
[1730853575158,0.8383,2464.4,2463.8,4.13028537]
[1730853575159,0.8283,2464.4,2463.8,4.13028537]
[1730853575619,0.8283,2464.4,2463.9,4.05859]
[1730853575816,0.02,2465.0,2463.7,4.05883]
[1730853575817,5.7527,2464.8,2464.3,0.55]
[1730853576617,5.7527,2464.8,2464.3,4.60789]
[1730853576848,0.7527,2464.8,2464.5,4.0576]
[1730853577048,5.0,2465.1,2464.8,0.55]
[1730853577414,5.0,2465.1,2464.7,0.55]
[1730853578049,5.0,2464.9,2464.7,0.55]
[1730853578427,0.7527,2465.4,2464.7,0.55]
[1730853578633,5.0,2464.9,2464.7,0.55]
[1730853578849,5.0,2464.9,2464.5,0.55]
[1730853579025,3.01,2465.7,2464.6,4.05736]
[1730853579026,5.0,2465.2,2464.6,4.05736]
[1730853579226,5.57527,2465.2,2464.9,0.55]
[1730853579746,5.57527,2465.2,2464.7,0.55]
[1730853579960,5.0,2464.9,2464.7,0.55]
[1730853580263,5.0,2464.9,2464.5,4.60758]
[1730853580628,5.0,2464.6,2464.2,4.13028537]
[1730853580834,0.58527,2465.2,2463.8,4.13028537]
[1730853580835,5.0,2464.3,2463.8,4.13028537]
[1730853581064,5.0,2464.3,2463.8,8.18902537]
[1730853581267,5.0,2464.3,2463.8,12.24759537]
[1730853581463,0.7527,2464.5,2463.8,4.13028537]
[1730853581663,5.0,2464.7,2463.5,0.01]
[1730853581664,5.0,2464.7,2464.2,4.13028537]
[1730853581876,5.0,2464.3,2463.8,8.18894537]
[1730853582537,5.0,2464.3,2464.2,4.05811]
[1730853582730,5.0,2464.3,2463.9,8.1172]
[1730853582947,0.5,2464.6,2464.3,0.55]
[1730853583262,0.7527,2464.9,2463.4,0.8069]
[1730853583263,5.0,2464.7,2464.5,0.55]
[1730853583464,5.0,2464.7,2464.3,0.55]
[1730853583670,5.0,2464.7,2464.3,4.60792]
[1730853584425,5.0,2464.7,2464.3,0.55]
[1730853585626,5.7527,2464.9,2464.5,0.55]
[1730853586062,5.7527,2464.9,2464.2,8.18828537]
[1730853586063,5.7527,2464.9,2464.3,0.55]
[1730853586262,5.0,2464.5,2464.2,4.13028537]
[1730853586869,5.0,2464.6,2464.2,8.18823537]
[1730853587365,5.0,2464.6,2464.3,4.60794]
[1730853587575,5.7527,2464.9,2464.3,4.60794]
[1730853587743,6.62797,2464.9,2464.5,0.55]
[1730853587942,6.62797,2464.9,2464.7,0.55]
[1730853588330,6.62797,2464.9,2464.4,0.55]
[1730853588530,6.62797,2464.9,2464.2,4.13028537]
[1730853588531,5.0,2464.6,2464.3,0.55]
[1730853589985,4.05771,2464.5,2464.3,0.55]
[1730853590196,5.0,2464.1,2463.4,4.13028537]
[1730853590395,5.0,2464.1,2463.5,4.05914]
[1730853591444,5.0,2464.1,2463.8,0.55]
[1730853591639,5.0,2464.1,2463.9,0.55]
[1730853593350,5.0,2463.8,2463.5,4.05912]
[1730853594295,5.0,2463.8,2463.6,4.05908]
[1730853594501,5.0,2464.1,2463.6,4.05908]
[1730853594809,5.0,2464.1,2463.4,8.18958537]
[1730853595104,5.0,2464.1,2463.8,0.55]
[1730853595599,5.0,2464.2,2463.9,4.05844]
[1730853595901,1.294479,2464.3,2464.0,0.55]
[1730853596056,5.0,2464.4,2464.0,0.55]
[1730853596257,0.8079,2464.6,2464.3,0.55]
[1730853596602,0.8079,2464.6,2463.7,0.7592]
[1730853596603,0.8079,2464.6,2464.1,0.55]
[1730853596773,0.8079,2464.6,2464.0,4.60835]
[1730853597115,5.0,2464.5,2463.9,0.55]
[1730853597259,5.0,2464.5,2464.0,4.05844]
[1730853597603,5.0,2464.5,2464.1,0.55]
[1730853597906,5.0,2464.5,2463.8,4.13028537]
[1730853597907,5.0,2464.5,2464.3,4.60784]
[1730853598108,5.0,2464.9,2464.8,0.55]
[1730853598262,5.58079,2464.9,2464.8,0.55]
[1730853598702,0.58079,2464.9,2464.8,0.55]
[1730853598908,5.58079,2464.9,2464.8,0.55]
[1730853599072,0.57527,2465.2,2465.1,0.55]
[1730853599073,5.0,2465.2,2465.1,0.55]
[1730853599279,5.0,2465.5,2465.4,4.05613]
[1730853599600,5.30831603,2466.2,2465.4,4.05613]
[1730853599601,5.0,2465.8,2465.5,4.60594]
[1730853599771,5.8298,2466.0,2465.5,4.60594]
[1730853599973,5.0,2465.7,2465.5,4.60594]
[1730853600191,5.8298,2466.0,2465.6,0.55]
[1730853600392,4.05451,2466.4,2465.9,0.55]
[1730853600393,0.8298,2466.4,2465.9,0.55]
[1730853600571,5.0,2466.0,2465.9,0.55]
[1730853600775,5.5,2466.0,2465.9,0.55]
[1730853601760,5.0,2466.3,2465.9,0.55]
[1730853601973,0.8298,2466.4,2465.9,0.55]
[1730853601974,5.0,2466.1,2465.9,0.55]
[1730853602484,5.0,2466.7,2465.9,0.55]
[1730853602700,5.0,2466.7,2466.5,0.55]
[1730853602886,0.8298,2466.8,2466.5,0.55]
[1730853603086,0.01922436,2466.7,2466.6,4.60402]
[1730853603303,5.0,2467.3,2467.0,0.55]
[1730853603484,5.0,2466.8,2466.3,8.18483537]
[1730853603801,5.0,2466.8,2466.6,0.55]
[1730853604413,5.0,2466.8,2466.4,0.55]
[1730853604726,5.0,2466.0,2465.5,4.13028537]
[1730853604929,0.905514,2465.9,2465.7,4.05549]
[1730853605072,5.0,2466.3,2465.7,4.05549]
[1730853605073,5.0,2466.3,2465.8,4.05544]
[1730853605274,5.0,2466.0,2465.5,8.18615537]
[1730853605477,5.0,2466.0,2465.7,4.05563]
[1730853605881,5.0,2466.0,2465.8,0.55]
[1730853606089,5.0,2466.5,2466.2,0.55]
[1730853606292,0.8298,2466.6,2466.4,0.55]
[1730853606609,5.0,2466.8,2466.7,0.55]
[1730853606808,0.8298,2467.1,2466.6,0.55]
[1730853607007,1.67126138,2468.1,2464.5,0.80325866]
[1730853607008,0.8298,2467.4,2467.1,4.60334]
[1730853607214,0.0278607,2468.3,2467.2,0.55]
[1730853607215,5.0,2467.7,2467.2,0.55]
[1730853607505,5.0,2467.4,2467.2,0.55]
[1730853607691,0.58298,2467.7,2466.8,3.0]
[1730853607692,5.58298,2467.7,2467.4,4.60282]
[1730853608098,5.0,2468.1,2467.6,4.60252]
[1730853608431,0.03796203,2468.1,2468.0,0.55]
[1730853608729,0.03796203,2468.1,2468.0,4.60173]
[1730853608910,0.0178607,2468.3,2467.9,8.18230537]
[1730853608911,0.0178607,2468.3,2468.2,4.60153]
[1730853609311,0.03054986,2468.3,2468.2,4.60153]
[1730853609518,0.03054986,2468.3,2468.2,0.55]
[1730853609519,0.0178607,2468.3,2468.2,0.55]
[1730853609728,0.0178607,2468.3,2468.0,0.55]
[1730853609895,0.0178607,2468.3,2468.2,4.60153]
[1730853610240,5.0178607,2468.3,2468.0,0.55]
[1730853610422,0.50178607,2468.2,2468.0,0.55]
[1730853611314,0.0178607,2468.3,2468.0,4.60177]
[1730853611636,0.0178607,2468.3,2468.2,4.60153]
[1730853611840,0.0178607,2468.3,2468.1,4.05153]
[1730853611841,5.0178607,2468.3,2467.8,0.55]
[1730853612059,5.0178607,2468.3,2467.8,4.60216]
[1730853612342,5.0,2468.0,2467.5,4.05253]
[1730853612696,5.0,2468.0,2467.4,4.05284]
[1730853612937,5.0,2468.0,2467.7,4.0522]
[1730853613092,5.0178607,2468.3,2467.7,4.0522]
[1730853613312,5.0178607,2468.3,2468.1,4.05169]
[1730853613510,5.0178607,2468.3,2468.0,0.55]
[1730853613710,5.0178607,2468.3,2467.9,4.13028537]
[1730853613711,0.0178607,2468.3,2468.2,4.60153]
[1730853614159,0.0178607,2468.3,2468.0,0.55]
[1730853614312,0.0178607,2468.3,2468.0,4.60173]